bitfinex/quotes_BTCUSD_20220226
["timestamp","ask_amount","ask_price","bid_price","bid_amount"]
[1645917210833,0.03,39135.0,39130.0,0.95130001]
[1645917211032,0.0003317,39133.0,39130.0,0.95130001]
[1645917211428,0.0003317,39133.0,39130.0,1.01521015]
[1645917211727,0.0003317,39133.0,39130.0,1.07912015]
[1645917211927,0.03,39135.0,39130.0,1.07912015]
[1645917212335,0.0003317,39133.0,39130.0,0.90000001]
[1645917212591,0.02549,39131.0,39130.0,0.90000001]
[1645917212800,0.595402,39131.0,39130.0,0.90000001]
[1645917212989,0.645402,39131.0,39130.0,0.90000001]
[1645917213189,0.645402,39131.0,39108.0,0.06394352]
[1645917213190,0.02549,39128.0,39108.0,0.06394352]
[1645917213389,0.06394949,39120.0,39106.0,0.6215]
[1645917213593,0.06394949,39120.0,39107.0,0.5]
[1645917213594,0.37875,39118.0,39107.0,0.5]
[1645917213788,0.37875,39116.0,39106.0,0.3716]
[1645917213986,0.02549,39119.0,39116.0,0.19758178]
[1645917213987,0.32549,39119.0,39116.0,0.19758178]
[1645917214188,0.233906,39118.0,39116.0,0.19758178]
[1645917214386,0.333906,39118.0,39116.0,0.19758178]
[1645917214586,0.36182085,39118.0,39116.0,0.19758178]
[1645917214786,0.469949,39117.0,39116.0,0.19758178]
[1645917215587,0.127915,39118.0,39116.0,0.19758178]
[1645917215790,0.01021,39119.0,39116.0,0.19758178]
[1645917215987,0.169949,39118.0,39116.0,0.19758178]
[1645917216222,0.063954,39120.0,39116.0,0.19758178]
[1645917216424,0.169949,39118.0,39116.0,0.19758178]
[1645917216720,0.169949,39117.0,39116.0,0.19758178]
[1645917217122,0.169949,39118.0,39116.0,0.19758178]
[1645917217518,0.297854,39118.0,39116.0,0.19758178]
[1645917217721,0.361805,39118.0,39116.0,0.19758178]
[1645917218018,0.661805,39118.0,39116.0,0.19758178]
[1645917218619,0.3,39117.0,39116.0,0.19758178]
[1645917218825,0.25580832,39118.0,39116.0,0.19758178]
[1645917219020,0.169949,39117.0,39116.0,0.19758178]
[1645917219821,0.25580832,39118.0,39116.0,0.19758178]
[1645917220075,0.191856,39118.0,39116.0,0.19758178]
[1645917220275,0.169949,39117.0,39116.0,0.19758178]
[1645917222277,0.19220945,39118.0,39116.0,0.19758178]
[1645917222677,0.127905,39118.0,39116.0,0.19758178]
[1645917222885,0.595439,39117.0,39116.0,0.19758178]
[1645917223080,0.720269,39117.0,39116.0,0.19758178]
[1645917223282,0.780479,39117.0,39116.0,0.19758178]
[1645917223482,1.26496859,39117.0,39116.0,0.19758178]
[1645917223733,1.26496859,39117.0,39116.0,0.05558178]
[1645917223933,0.063968,39108.0,39094.0,0.23316041]
[1645917224137,0.089458,39108.0,39094.0,0.378513]
[1645917224332,0.089458,39108.0,39095.0,0.378513]
[1645917224534,0.089458,39108.0,39094.0,0.21574667]
[1645917224735,0.3,39107.0,39094.0,0.378513]
[1645917224935,0.063967,39105.0,39093.0,0.21634448]
[1645917225134,0.191908,39106.0,39094.0,0.378513]
[1645917225135,2.72613658,39100.0,39094.0,0.378513]
[1645917225334,0.191908,39106.0,39096.0,0.00035073]
[1645917225535,0.00035066,39104.0,39096.0,0.00035073]
[1645917226033,0.063971,39102.0,39096.0,0.00035073]
[1645917226434,0.063971,39102.0,39093.0,0.00059781]
[1645917226638,0.058971,39102.0,39096.0,0.00035073]
[1645917227142,0.02549,39100.0,39096.0,0.00035073]
[1645917227342,0.02549,39098.0,39096.0,0.00035073]
[1645917227591,0.02549,39098.0,39093.0,0.00059781]
[1645917227592,0.169949,39097.0,39093.0,0.00059781]
[1645917227785,0.169949,39095.0,39093.0,0.00059781]
[1645917228783,0.127974,39097.0,39093.0,0.00059781]
[1645917228982,0.063987,39097.0,39093.0,0.00059781]
[1645917229884,0.063987,39097.0,39086.0,0.378513]
[1645917230084,0.063987,39097.0,39093.0,0.00035034]
[1645917230288,0.01022,39103.0,39094.0,0.378513]
[1645917230490,0.00035024,39104.0,39094.0,0.378513]
[1645917230884,0.00035024,39104.0,39093.0,0.06431634]
[1645917231084,0.00035024,39104.0,39091.0,0.127926]
[1645917231325,0.06396,39108.0,39096.0,0.00035033]
[1645917231526,0.00035025,39104.0,39096.0,0.00035033]
[1645917232328,0.37549,39108.0,39095.0,0.12792583]
[1645917232528,0.37549,39108.0,39096.0,0.00035034]
[1645917232728,0.00035026,39104.0,39096.0,0.00035034]
[1645917233529,0.37049,39108.0,39095.0,0.12792583]
[1645917233727,0.063963,39105.0,39096.0,0.00035045]
[1645917233927,0.00035037,39104.0,39096.0,0.00035045]
[1645917234731,0.063959,39108.0,39097.0,0.06396025]
[1645917234974,0.153414,39110.0,39097.0,0.06396025]
[1645917234975,0.463624,39110.0,39097.0,0.06396025]
[1645917235374,0.463624,39110.0,39096.0,0.00020079]
[1645917235675,0.453414,39110.0,39096.0,0.00020079]
[1645917236075,0.063962,39106.0,39092.0,0.258858]
[1645917236275,0.063962,39106.0,39096.0,0.00020079]
[1645917236276,0.3,39105.0,39096.0,0.00020079]
[1645917236475,0.3,39107.0,39096.0,0.00020079]
[1645917237275,0.3,39107.0,39090.0,0.05]
[1645917237475,0.00034916,39104.0,39096.0,0.00034924]
[1645917237675,0.063973,39103.0,39096.0,0.00034924]
[1645917238480,0.063973,39103.0,39093.0,0.378513]
[1645917238718,0.063973,39103.0,39096.0,0.00034923]
[1645917239522,0.28138121,39108.0,39096.0,0.00034923]
[1645917239523,0.063962,39106.0,39097.0,0.378513]
[1645917239729,0.30221847,39115.0,39097.0,0.378513]
[1645917239730,0.02549,39114.0,39101.0,0.06394948]
[1645917239923,0.00034915,39104.0,39103.0,0.378513]
[1645917240521,0.00034915,39104.0,39103.0,0.06395]
[1645917240722,0.02549,39116.0,39103.0,0.06395]
[1645917240921,0.08944439,39116.0,39103.0,0.36395]
[1645917241222,0.00034916,39105.0,39103.0,0.36395]
[1645917241420,0.00034916,39105.0,39103.0,0.06395]
[1645917242022,0.063956,39110.0,39103.0,0.06395]
[1645917242228,0.00034916,39106.0,39104.0,0.3]
[1645917242480,0.00034916,39106.0,39103.0,0.06395]
[1645917243281,0.063956,39110.0,39103.0,0.06395]
[1645917243480,0.00034915,39106.0,39103.0,0.06395]
[1645917243680,0.00034915,39106.0,39104.0,0.378513]
[1645917243881,0.02688639,39113.0,39111.0,0.1286103]
[1645917244084,0.169949,39112.0,39111.0,0.1286103]
[1645917249251,0.12628959,39122.0,39112.0,0.378513]
[1645917249453,0.00139627,39119.0,39114.0,0.378513]
[1645917249654,0.00139627,39119.0,39113.0,0.3]
[1645917249655,0.00139627,39119.0,39116.0,0.378513]
[1645917249854,0.00139627,39119.0,39118.0,0.378513]
[1645917250093,0.00139627,39119.0,39118.0,0.729813]
[1645917250285,0.00139627,39119.0,39118.0,1.56063]
[1645917250590,0.01015574,39128.0,39118.0,1.12841]
[1645917250884,0.00034908,39120.0,39119.0,0.3]
[1645917251085,0.00034908,39120.0,39119.0,1.196703]
[1645917251485,0.00034908,39120.0,39119.0,1.496703]
[1645917251686,0.01015574,39128.0,39120.0,0.378513]
[1645917251885,0.0013961,39127.0,39122.0,0.378513]
[1645917252085,0.0013961,39127.0,39124.0,0.378513]
[1645917252786,0.01015574,39128.0,39125.0,0.06391741]
[1645917252986,0.00034905,39127.0,39125.0,0.06391741]
[1645917253587,0.00034905,39127.0,39125.0,0.12783441]
[1645917253825,0.00034905,39127.0,39125.0,0.19175141]
[1645917254027,0.01015574,39128.0,39125.0,0.19175141]
[1645917254324,0.01050478,39128.0,39125.0,0.19175141]
[1645917255230,0.01015574,39128.0,39122.0,0.25566571]
[1645917255427,0.169949,39127.0,39119.0,0.81819]
[1645917255626,0.01050478,39128.0,39120.0,0.002]
[1645917255825,0.169949,39127.0,39121.0,0.0513]
[1645917256025,2.54150594,39123.0,39121.0,0.0513]
[1645917257228,2.54150594,39123.0,39119.0,0.76689]
[1645917257489,0.00034906,39124.0,39119.0,0.76689]
[1645917257687,1.0398,39135.0,39119.0,0.76689]
[1645917257688,0.0357,39134.0,39119.0,0.76689]
[1645917257889,0.00034907,39123.0,39119.0,0.76689]
[1645917258086,0.00034907,39123.0,39119.0,0.894738]
[1645917258485,0.00034907,39123.0,39120.0,0.063929]
[1645917258893,0.127857,39132.0,39120.0,0.063929]
[1645917259091,0.127857,39132.0,39119.0,0.76689]
[1645917259092,0.00034907,39123.0,39119.0,0.76689]
[1645917259288,0.169949,39122.0,39119.0,0.76689]
[1645917259491,0.259383,39122.0,39119.0,0.76689]
[1645917259690,0.00034907,39123.0,39121.0,0.378513]
[1645917259891,0.00034907,39123.0,39122.0,0.729813]
[1645917260090,0.03,39135.0,39123.0,0.378513]
[1645917260292,0.03,39135.0,39126.0,0.378513]
[1645917260495,0.00139605,39130.0,39128.0,0.442419]
[1645917260691,0.00139605,39130.0,39129.0,0.0513]
[1645917260992,0.00139605,39130.0,39119.0,0.76689]
[1645917261246,0.05549,39135.0,39121.0,0.76685]
[1645917261247,0.063931,39132.0,39121.0,0.76685]
[1645917261535,0.06392811,39133.0,39121.0,0.76685]
[1645917261935,2.48366779,39127.0,39121.0,0.76685]
[1645917263038,0.127866,39130.0,39121.0,0.76685]
[1645917263236,0.127866,39130.0,39121.0,1.130775]
[1645917263237,0.063925,39130.0,39121.0,1.130775]
[1645917263437,1.13765,39134.0,39121.0,1.130775]
[1645917263636,1.13765,39134.0,39121.0,0.830775]
[1645917263840,1.0098,39134.0,39122.0,0.3]
[1645917264036,0.03,39135.0,39122.0,0.3]
[1645917264438,0.03,39135.0,39125.0,0.063916]
[1645917264637,0.03,39135.0,39126.0,0.3]
[1645917264837,0.03,39135.0,39123.0,0.31957423]
[1645917264838,0.03,39135.0,39125.0,0.378513]
[1645917265104,0.00034854,39132.0,39128.0,0.06391232]
[1645917265905,0.00034854,39132.0,39128.0,0.12782632]
[1645917266109,0.03,39135.0,39128.0,0.18673832]
[1645917266303,0.00034854,39132.0,39128.0,0.18673832]
[1645917267106,0.169949,39131.0,39123.0,0.138044]
[1645917267307,0.169949,39130.0,39122.0,0.01021]
[1645917267505,1.0098,39134.0,39123.0,0.378513]
[1645917267706,1.0098,39134.0,39122.0,0.01021]
[1645917268109,0.02549,39131.0,39122.0,0.01021]
[1645917268311,0.169949,39128.0,39118.0,0.004]
[1645917268505,0.02549,39127.0,39118.0,0.004]
[1645917268738,0.169949,39124.0,39118.0,0.004]
[1645917268936,0.169949,39124.0,39117.0,0.05]
[1645917269137,0.06394,39124.0,39117.0,0.05]
[1645917269337,0.06394,39124.0,39121.0,0.712706]
[1645917269939,0.06428834,39124.0,39121.0,0.712706]
[1645917270541,0.169949,39123.0,39121.0,0.712706]
[1645917270743,0.02549,39122.0,39121.0,0.712706]
[1645917270943,0.169949,39122.0,39121.0,0.712706]
[1645917274683,0.164949,39122.0,39121.0,0.712706]
[1645917274879,0.164963,39122.0,39121.0,0.712706]
[1645917275077,0.00034806,39123.0,39121.0,0.712706]
[1645917275679,0.06394,39124.0,39121.0,0.712706]
[1645917276083,0.06428806,39124.0,39121.0,0.712706]
[1645917276932,0.06394,39124.0,39121.0,0.712706]
[1645917277134,0.06428805,39124.0,39121.0,0.712706]
[1645917278136,0.06394,39124.0,39121.0,0.712706]
[1645917278338,0.06428805,39124.0,39121.0,0.712706]
[1645917278536,0.12822705,39124.0,39121.0,0.712706]
[1645917279337,0.228904,39123.0,39121.0,0.712706]
[1645917279539,0.12822705,39124.0,39123.0,0.51230472]
[1645917279736,0.22925005,39124.0,39123.0,0.51230472]
[1645917280382,0.29319205,39124.0,39123.0,0.51230472]
[1645917280583,0.368334,39124.0,39123.0,0.51230472]
[1645917280793,0.7164577,39124.0,39123.0,0.51230472]
[1645917280986,0.8766677,39124.0,39123.0,0.51230472]
[1645917281184,1.6821977,39124.0,39123.0,0.51230472]
[1645917281583,2.0309177,39124.0,39123.0,0.51230472]
[1645917281784,1.765134,39124.0,39123.0,0.12850872]
[1645917282583,1.416414,39124.0,39123.0,0.12850872]
[1645917282783,1.416414,39124.0,39123.0,8.72e-06]
[1645917282991,0.80359,39122.0,39121.0,1.472e-05]
[1645917283188,1.878783,39122.0,39121.0,1.472e-05]
[1645917283384,0.02549,39119.0,39111.0,0.1286103]
[1645917283586,0.02549,39114.0,39111.0,0.1286103]
[1645917283835,0.190453,39112.0,39111.0,0.1286103]
[1645917284039,0.541753,39112.0,39111.0,0.1286103]
[1645917284234,0.591753,39112.0,39111.0,0.1286103]
[1645917284835,0.655726,39112.0,39111.0,0.1286103]
[1645917285138,0.654426,39112.0,39111.0,0.1286103]
[1645917285533,0.664636,39112.0,39111.0,0.1286103]
[1645917287135,0.659636,39112.0,39111.0,0.1286103]
[1645917287885,1.437736,39112.0,39111.0,0.1286103]
[1645917288486,1.489036,39112.0,39111.0,0.1286103]
[1645917288686,1.837756,39112.0,39111.0,0.1286103]
[1645917289082,0.759656,39112.0,39111.0,0.1286103]
[1645917289290,0.140763,39112.0,39111.0,0.1286103]
[1645917289486,0.305726,39112.0,39111.0,0.1286103]
[1645917289682,0.305726,39112.0,39111.0,0.1236103]
[1645917291227,0.705726,39112.0,39111.0,0.1236103]
[1645917291431,1.594036,39112.0,39111.0,0.1236103]
[1645917292429,1.942756,39112.0,39111.0,0.1236103]
[1645917293631,1.794036,39112.0,39111.0,0.1236103]
[1645917293832,1.942756,39112.0,39111.0,0.1236103]
[1645917294031,1.794036,39112.0,39111.0,0.1236103]
[1645917294233,1.942756,39112.0,39111.0,0.1236103]
[1645917294438,1.942756,39112.0,39100.0,0.00034685]
[1645917294640,0.228961,39102.0,39100.0,0.00034685]
[1645917294837,0.228961,39102.0,39089.0,0.2439]
[1645917294838,0.72162867,39101.0,39089.0,0.2439]
[1645917295097,0.02549,39097.0,39089.0,0.2439]
[1645917295293,0.216263,39096.0,39089.0,0.2439]
[1645917295490,0.316263,39096.0,39088.0,0.001]
[1645917295793,0.316263,39096.0,39084.0,0.1004]
[1645917295794,0.164963,39093.0,39084.0,0.1004]
[1645917295989,0.55256531,39095.0,39084.0,0.1004]
[1645917295990,0.228963,39091.0,39084.0,0.1004]
[1645917296793,0.3,39090.0,39084.0,0.1004]
[1645917296996,0.35698601,39089.0,39084.0,0.0984]
[1645917297495,0.35698601,39089.0,39085.0,0.0003469]
[1645917298096,0.06400688,39088.0,39085.0,0.0003469]
[1645917298295,0.064007,39086.0,39085.0,0.0003469]
[1645917298496,0.064007,39086.0,39084.0,0.0984]
[1645917298497,0.22897,39086.0,39084.0,0.0984]
[1645917298731,0.22897,39086.0,39085.0,0.0003469]
[1645917299334,0.128014,39087.0,39085.0,0.0003469]
[1645917299538,0.063992,39091.0,39086.0,0.68691]
[1645917300632,0.063992,39091.0,39086.0,0.68191]
[1645917301233,0.164963,39090.0,39087.0,0.00034689]
[1645917301434,0.063993,39090.0,39087.0,0.00034689]
[1645917302241,0.063993,39090.0,39086.0,0.68191]
[1645917302496,0.063993,39090.0,39087.0,0.00034689]
[1645917303293,0.063993,39090.0,39086.0,0.68191]
[1645917303494,0.063993,39090.0,39087.0,0.00034689]
[1645917303793,0.164963,39089.0,39087.0,0.00034689]
[1645917303992,0.164963,39088.0,39087.0,0.00034689]
[1645917304191,0.164963,39089.0,39087.0,0.00034689]
[1645917304695,0.06399975,39089.0,39086.0,0.67725689]
[1645917304892,0.19200175,39089.0,39086.0,0.67725689]
[1645917305094,0.063995,39089.0,39086.0,0.67725689]
[1645917305295,0.164963,39096.0,39086.0,0.67725689]
[1645917305793,0.063992,39094.0,39086.0,0.67691]
[1645917305992,0.063992,39094.0,39089.0,0.00034687]
[1645917306235,0.164963,39093.0,39089.0,0.00034687]
[1645917306435,0.228957,39093.0,39089.0,0.00034687]
[1645917306636,0.164963,39090.0,39089.0,0.00034687]
[1645917307038,0.164963,39090.0,39086.0,0.67691]
[1645917307242,0.164963,39090.0,39088.0,0.00034688]
[1645917307835,0.128016,39089.0,39088.0,0.00034688]
[1645917308038,0.292979,39089.0,39088.0,0.00034688]
[1645917308235,0.420981,39089.0,39086.0,0.67691]
[1645917308440,0.164963,39088.0,39087.0,0.00034689]
[1645917309335,0.164963,39088.0,39086.0,0.67691]
[1645917309537,0.32549,39096.0,39095.0,0.27345271]
[1645917310285,0.389493,39096.0,39095.0,0.27345271]
[1645917310885,0.364003,39096.0,39095.0,0.27345271]
[1645917311086,0.064003,39096.0,39095.0,0.27345271]
[1645917311783,0.364003,39096.0,39095.0,0.27345271]
[1645917311991,0.064003,39096.0,39095.0,0.27345271]
[1645917313386,0.364003,39096.0,39095.0,0.27345271]
[1645917314131,0.364003,39096.0,39095.0,0.28564063]
[1645917314333,0.364003,39096.0,39095.0,0.29782855]
[1645917315537,0.374223,39096.0,39095.0,0.29782855]
[1645917315736,0.364003,39096.0,39095.0,0.29782855]
[1645917317151,0.064003,39096.0,39095.0,0.29782855]
[1645917318027,0.32000698,39097.0,39095.0,0.29782855]
[1645917318225,0.256004,39097.0,39095.0,0.29782855]
[1645917318425,0.064003,39098.0,39095.0,0.29782855]
[1645917319132,0.063981,39098.0,39096.0,0.3]
[1645917319327,0.063981,39098.0,39095.0,0.27345271]
[1645917319525,0.13826643,39105.0,39097.0,0.01218792]
[1645917319526,0.07427843,39105.0,39097.0,0.01218792]
[1645917320124,0.07413074,39105.0,39097.0,0.01218792]
[1645917320524,0.07413074,39105.0,39098.0,0.00034709]
[1645917320727,0.13845347,39105.0,39098.0,0.00034709]
[1645917320929,0.063917,39103.0,39098.0,0.00034709]
[1645917321337,0.063917,39103.0,39097.0,0.01218792]
[1645917321542,0.127897,39103.0,39098.0,0.00034709]
[1645917321738,0.19187666,39103.0,39098.0,0.00034709]
[1645917322336,0.063983,39102.0,39098.0,0.00034709]
[1645917322537,0.191951,39102.0,39097.0,0.01218792]
[1645917322945,0.063985,39102.0,39098.0,0.00034709]
[1645917323736,0.063985,39102.0,39097.0,0.01218792]
[1645917324139,0.063985,39102.0,39098.0,0.00034709]
[1645917324140,0.12796617,39102.0,39098.0,0.00034709]
[1645917324738,0.12796617,39102.0,39100.0,0.01218792]
[1645917324987,0.12796617,39102.0,39100.0,0.02437584]
[1645917325386,0.19194817,39102.0,39100.0,0.02437584]
[1645917325604,0.063984,39101.0,39100.0,0.02437584]
[1645917325791,0.36219313,39101.0,39100.0,0.02437584]
[1645917325988,0.063984,39101.0,39100.0,0.02437584]
[1645917326190,0.074204,39101.0,39100.0,0.02437584]
[1645917328294,0.19194817,39102.0,39100.0,0.02437584]
[1645917328295,0.063985,39102.0,39100.0,0.02437584]
[1645917329939,0.063985,39102.0,39096.0,0.3]
[1645917330239,0.063985,39102.0,39101.0,0.01218792]
[1645917332702,0.00014756,39105.0,39102.0,0.378718]
[1645917332889,0.00014756,39105.0,39102.0,0.3513]
[1645917333085,0.00014756,39105.0,39102.0,0.0513]
[1645917333287,0.00014756,39105.0,39103.0,0.378718]
[1645917333486,0.01021,39113.0,39103.0,0.378718]
[1645917333692,0.00014756,39105.0,39104.0,0.3]
[1645917333886,0.00014756,39105.0,39104.0,0.430018]
[1645917334686,0.063962,39112.0,39104.0,0.430018]
[1645917334891,0.05,39114.0,39105.0,0.8681629]
[1645917334892,0.00014756,39106.0,39105.0,0.8681629]
[1645917335090,0.00014756,39106.0,39105.0,0.6194629]
[1645917335489,0.00014756,39106.0,39105.0,0.64383874]
[1645917335688,0.00059014,39114.0,39108.0,0.02549]
[1645917335890,0.01015574,39115.0,39111.0,0.468151]
[1645917336090,0.00059023,39114.0,39112.0,0.32549]
[1645917336345,0.00059023,39114.0,39113.0,0.378718]
[1645917336537,0.00059023,39114.0,39113.0,0.430018]
[1645917336736,0.00059023,39114.0,39113.0,0.755508]
[1645917336947,0.00059023,39114.0,39113.0,0.855508]
[1645917337139,1.0098,39127.0,39117.0,0.063932]
[1645917337336,1.0098,39127.0,39118.0,0.3]
[1645917337536,0.063934,39130.0,39118.0,0.3]
[1645917337936,0.063934,39130.0,39118.0,0.0513]
[1645917338135,0.074144,39130.0,39118.0,0.0513]
[1645917338334,0.074144,39130.0,39118.0,0.3513]
[1645917338536,0.00014745,39126.0,39118.0,0.3513]
[1645917338736,0.00014745,39126.0,39119.0,0.378718]
[1645917338940,0.00014745,39126.0,39117.0,0.02549]
[1645917338941,0.00014745,39126.0,39121.0,0.378718]
[1645917339137,0.00014745,39126.0,39123.0,0.378718]
[1645917339335,0.00014745,39126.0,39122.0,0.0513]
[1645917339538,0.17286047,39131.0,39126.0,6e-05]
[1645917339981,1.0111885,39132.0,39126.0,6e-05]
[1645917340385,0.17284876,39131.0,39126.0,6e-05]
[1645917340686,1.0098,39132.0,39128.0,0.01218792]
[1645917340886,0.17317364,39131.0,39128.0,0.02437584]
[1645917341082,0.063936,39130.0,39128.0,0.02437584]
[1645917344638,0.008936,39130.0,39128.0,0.02437584]
[1645917344842,0.00032269,39131.0,39128.0,0.02437584]
[1645917345540,1.0098,39132.0,39128.0,0.02437584]
[1645917345740,0.00032434,39131.0,39128.0,0.01218792]
[1645917346141,0.00032434,39131.0,39123.0,0.001]
[1645917346342,0.00032434,39131.0,39127.0,0.01218792]
[1645917346742,0.063934,39132.0,39127.0,0.01218792]
[1645917346943,0.00032434,39131.0,39127.0,0.01218792]
[1645917347346,0.00026434,39131.0,39127.0,0.01218792]
[1645917347984,0.00638959,39134.0,39127.0,0.01218792]
[1645917349190,0.07031859,39134.0,39127.0,0.01218792]
[1645917349591,0.05,39133.0,39127.0,0.01218792]
[1645917349893,0.07549,39133.0,39127.0,0.01218792]
[1645917350088,0.01021,39132.0,39127.0,0.01218792]
[1645917350289,0.15174607,39131.0,39127.0,0.01218792]
[1645917350491,0.074156,39130.0,39127.0,0.01218792]
[1645917350694,0.127892,39129.0,39127.0,0.01218792]
[1645917351090,0.127892,39129.0,39128.0,0.01218792]
[1645917351744,0.127892,39129.0,39128.0,0.02437584]
[1645917354443,0.12448649,39130.0,39128.0,0.02437584]
[1645917355087,0.124156,39130.0,39128.0,0.02437584]
[1645917356184,0.124156,39130.0,39128.0,0.01218792]
[1645917356385,0.124156,39130.0,39129.0,0.01218792]
[1645917356987,0.124156,39130.0,39129.0,0.02437584]
[1645917357389,0.119156,39130.0,39129.0,0.02437584]
[1645917357587,0.183093,39130.0,39129.0,0.02437584]
[1645917357787,0.119156,39130.0,39129.0,0.02437584]
[1645917358491,0.074156,39130.0,39129.0,0.02437584]
[1645917358747,0.138093,39130.0,39129.0,0.02437584]
[1645917359147,0.127883,39130.0,39129.0,0.02437584]
[1645917359547,0.227883,39130.0,39129.0,0.02393624]
[1645917359947,0.177883,39130.0,39129.0,0.02393624]
[1645917360149,0.227883,39130.0,39129.0,0.02393624]
[1645917361448,0.227883,39130.0,39129.0,0.01218792]
[1645917361655,0.227883,39130.0,39129.0,0.02393624]
[1645917362048,0.127883,39130.0,39129.0,0.02393624]
[1645917363296,0.063946,39130.0,39129.0,0.02393624]
[1645917364696,0.127882,39130.0,39129.0,0.02393624]
[1645917364894,0.063946,39130.0,39129.0,0.02393624]
[1645917365497,0.058946,39130.0,39129.0,0.02393624]
[1645917365998,0.074136,39133.0,39129.0,0.02393624]
[1645917366242,0.00032449,39131.0,39129.0,0.01174832]
[1645917366537,0.03,39135.0,39131.0,0.00064897]
[1645917366735,0.03,39135.0,39132.0,0.01218792]
[1645917366935,0.03,39135.0,39132.0,0.02393624]
[1645917369737,0.03014718,39135.0,39132.0,0.02393624]
[1645917369999,0.02970578,39135.0,39132.0,0.02393624]
[1645917370699,0.0295586,39135.0,39132.0,0.02393624]
[1645917371099,0.02990613,39135.0,39132.0,0.02393624]
[1645917371703,0.02990613,39135.0,39132.0,0.01174832]
[1645917371902,0.0294986,39135.0,39134.0,0.01218792]
[1645917372307,0.02984613,39135.0,39134.0,0.02393624]
[1645917373105,0.0294986,39135.0,39134.0,0.02393624]
[1645917385988,0.0294986,39135.0,39134.0,0.32393624]
[1645917386194,1.356e-05,39136.0,39134.0,0.87944424]
[1645917386392,0.01,39139.0,39135.0,0.363901]
[1645917386589,0.01,39139.0,39137.0,0.1639]
[1645917386789,0.01,39139.0,39138.0,0.730018]
[1645917386989,0.01,39139.0,39138.0,0.36304832]
[1645917387187,0.005,39139.0,39138.0,0.06304832]
[1645917387590,0.005,39139.0,39138.0,0.44176632]
[1645917387990,0.005,39139.0,39138.0,0.06304832]
[1645917388189,0.005,39139.0,39138.0,0.44176632]
[1645917388390,0.005,39139.0,39138.0,0.36304832]
[1645917388594,0.005,39139.0,39138.0,0.06304832]
[1645917389039,0.005,39139.0,39138.0,0.44176632]
[1645917389337,0.005,39139.0,39138.0,0.06304832]
[1645917389939,0.005,39139.0,39138.0,0.44176632]
[1645917391941,0.005,39139.0,39138.0,0.45395424]
[1645917392149,0.005,39139.0,39138.0,0.44895424]
[1645917392347,0.005,39139.0,39138.0,0.07023624]
[1645917392791,0.005,39139.0,39138.0,0.44895424]
[1645917394391,0.005,39139.0,39138.0,0.07023624]
[1645917395595,0.005,39139.0,39138.0,0.40265424]
[1645917396249,0.005,39139.0,39138.0,0.02393624]
[1645917397245,0.005,39139.0,39138.0,0.01893624]
[1645917397446,0.005,39139.0,39138.0,0.01218792]
[1645917397951,0.005,39139.0,39138.0,0.01893624]
[1645917404245,0.305,39139.0,39138.0,0.01893624]
[1645917404449,0.005,39139.0,39138.0,0.01893624]
[1645917406547,0.00431737,39139.0,39138.0,0.01893624]
[1645917417097,0.08110737,39139.0,39138.0,0.01893624]
[1645917417498,0.34160524,39139.0,39138.0,0.01893624]
[1645917418098,0.19131737,39139.0,39138.0,0.01893624]
[1645917418295,0.19770696,39139.0,39138.0,0.01893624]
[1645917418495,0.19764696,39139.0,39138.0,0.01893624]
[1645917421147,0.37044548,39139.0,39138.0,0.01893624]
[1645917421349,0.67044548,39139.0,39138.0,0.01893624]
[1645917421551,1.44854548,39139.0,39138.0,0.01893624]
[1645917422047,0.67044548,39139.0,39138.0,0.01893624]
[1645917422497,0.49764696,39139.0,39138.0,0.01893624]
[1645917422999,1.27574696,39139.0,39138.0,0.01893624]
[1645917423394,1.44854548,39139.0,39138.0,0.01893624]
[1645917424103,1.85148623,39139.0,39138.0,0.01893624]
[1645917424299,0.02549,39138.0,39131.0,0.00064897]
[1645917424498,0.25340347,39132.0,39131.0,0.00064897]
[1645917424699,2.119789,39132.0,39131.0,0.00064897]
[1645917424997,0.80359,39129.0,39117.0,0.00030942]
[1645917425201,0.02549,39126.0,39117.0,0.00030942]
[1645917425397,0.02549,39124.0,39117.0,0.00030942]
[1645917425597,0.02549,39121.0,39117.0,0.00030942]
[1645917425797,0.440747,39121.0,39117.0,0.00030942]
[1645917426098,0.02549,39120.0,39117.0,0.00030937]
[1645917426749,0.281318,39120.0,39117.0,0.00030937]
[1645917426947,0.08944657,39119.0,39117.0,0.00030937]
[1645917427150,0.38944657,39119.0,39108.0,0.1158]
[1645917427346,0.063958,39117.0,39108.0,0.1158]
[1645917427547,0.063958,39117.0,39107.0,0.2515]
[1645917428147,0.063958,39117.0,39106.0,0.43579511]
[1645917428549,0.063955,39118.0,39117.0,0.12791599]
[1645917430017,0.063957,39120.0,39117.0,0.12791599]
[1645917430211,1.0098,39122.0,39117.0,0.12791599]
[1645917430212,0.002,39118.0,39117.0,0.12291599]
[1645917430409,0.002,39118.0,39117.0,0.50163399]
[1645917431210,0.002,39118.0,39117.0,0.12291599]
[1645917431408,1.0098,39122.0,39117.0,0.12291599]
[1645917432212,1.0098,39122.0,39117.0,0.12322062]
[1645917432714,1.0098,39122.0,39117.0,0.25109029]
[1645917432910,1.0098,39122.0,39117.0,0.18715529]
[1645917433110,1.0098,39122.0,39117.0,0.18685066]
[1645917433310,1.0098,39122.0,39117.0,0.18715529]
[1645917434345,1.0098,39122.0,39117.0,0.18685066]
[1645917434554,1.0098,39122.0,39118.0,0.063933]
[1645917434747,0.063935,39126.0,39118.0,0.063933]
[1645917435047,0.063935,39126.0,39118.0,0.127866]
[1645917435247,0.063935,39126.0,39118.0,0.063933]
[1645917435447,0.063935,39126.0,39117.0,0.12322061]
[1645917435647,0.063935,39126.0,39117.0,0.12291599]
[1645917435847,0.063935,39126.0,39117.0,0.1232206]
[1645917436447,0.063935,39126.0,39117.0,0.48715598]
[1645917436849,0.063935,39126.0,39117.0,0.48685137]
[1645917437053,0.063935,39126.0,39117.0,0.48715598]
[1645917438200,0.063935,39126.0,39117.0,0.12291599]
[1645917439704,0.127874,39126.0,39117.0,0.12291599]
[1645917440699,0.127874,39126.0,39118.0,0.3]
[1645917441244,0.063935,39126.0,39118.0,0.3]
[1645917442347,0.063935,39126.0,39117.0,0.12324264]
[1645917442546,0.063935,39126.0,39117.0,0.42324264]